bitfinex-derivatives/quotes_BTCF0:USTF0_20251103
["timestamp","ask_amount","ask_price","bid_price","bid_amount"]
[1762201979023,0.1506343,106920.0,106910.0,0.21796593]
[1762201979327,0.05708,106920.0,106910.0,0.21796593]
[1762201979932,0.151619,106940.0,106930.0,0.1339456]
[1762201980637,0.02262,106940.0,106930.0,0.0404]
[1762201980939,0.06727046,106970.0,106960.0,0.1339194]
[1762201981125,0.05808,106970.0,106960.0,0.1339194]
[1762201981329,0.05808,106970.0,106960.0,0.16744464]
[1762201981330,0.03653,106970.0,106960.0,0.16744464]
[1762201981531,0.03653,106970.0,106960.0,0.2177873]
[1762201981737,0.05808,106970.0,106960.0,0.18426206]
[1762201982525,0.06108,106970.0,106960.0,0.18426206]
[1762201983735,0.1545907,106970.0,106960.0,0.07054266]
[1762201983939,0.1545907,106970.0,106960.0,0.34552]
[1762201984241,0.1545907,106970.0,106960.0,0.4592394]
[1762201984542,0.06108,106970.0,106960.0,0.4592394]
[1762201984836,0.1545907,106970.0,106960.0,0.4592394]
[1762201985140,0.1545907,106970.0,106960.0,0.32532]
[1762201985543,0.1545907,106970.0,106960.0,0.36572]
[1762201986634,0.1545907,106970.0,106940.0,0.14387466]
[1762201986938,0.1376966,106960.0,106950.0,0.0404]
[1762201987443,0.1376966,106960.0,106950.0,0.1339282]
[1762201987736,0.1516066,106960.0,106950.0,0.0404]
[1762201988537,0.05808,106940.0,106930.0,0.1339457]
[1762201990836,0.1516169,106940.0,106930.0,0.1339457]
[1762201991744,0.05808,106940.0,106930.0,0.1339457]
[1762201992244,0.1516169,106940.0,106930.0,0.1339457]
[1762201992740,0.05808,106940.0,106930.0,0.1339457]
[1762201993838,0.05808,106940.0,106930.0,0.18428836]
[1762201994145,0.1516169,106940.0,106930.0,0.18428836]
[1762201994340,0.05808,106940.0,106930.0,0.18428836]
[1762201994541,0.1516169,106940.0,106930.0,0.18428836]
[1762201995141,0.05808,106940.0,106930.0,0.18428836]
[1762201995448,0.1516169,106940.0,106930.0,0.18428836]
[1762201995749,0.05808,106940.0,106930.0,0.18428836]
[1762201996137,0.1516169,106940.0,106930.0,0.18428836]
[1762201996844,0.05808,106940.0,106930.0,0.18428836]
[1762201997439,0.1516169,106940.0,106930.0,0.18428836]
[1762201997644,0.05808,106940.0,106930.0,0.18428836]
[1762201998252,0.1501243,106950.0,106940.0,0.1339369]
[1762201999241,0.05659,106950.0,106940.0,0.1339369]
[1762201999439,0.001,106950.0,106940.0,0.65946492]
[1762201999646,0.05659,106970.0,106960.0,0.1339194]
[1762202000543,0.1501007,106970.0,106960.0,0.1339194]
[1762202001147,0.05659,106970.0,106960.0,0.1339194]
[1762202001652,0.11610011,106990.0,106980.0,0.093502]
[1762202001847,0.15878011,106990.0,106980.0,0.0404]
[1762202002241,0.149362,106980.0,106970.0,0.133905]
[1762202002449,0.1493707,106970.0,106960.0,0.50937876]
[1762202003455,0.05586,106970.0,106960.0,0.50937876]
[1762202004547,0.05886,106970.0,106960.0,0.50937876]
[1762202005345,0.1523707,106970.0,106960.0,0.50937876]
[1762202005749,0.1523707,106970.0,106960.0,0.5428939]
[1762202006153,0.05886,106970.0,106960.0,0.5428939]
[1762202006453,0.05886,106970.0,106960.0,0.54289245]
[1762202006853,0.003,106970.0,106960.0,0.50937876]
[1762202007551,0.02463,106970.0,106960.0,0.50937876]
[1762202008254,0.06087,106970.0,106960.0,0.50937876]
[1762202008555,0.1543807,106970.0,106960.0,0.54290453]
[1762202008755,0.1523807,106970.0,106960.0,0.54290453]
[1762202008957,0.1523807,106970.0,106960.0,0.49256187]
[1762202009257,0.28357754,106970.0,106960.0,0.03352577]
[1762202009555,0.1514095,106960.0,106950.0,0.21779583]
[1762202010056,0.1514095,106960.0,106950.0,0.16745317]
[1762202010644,0.1514182,106950.0,106940.0,0.54320393]
[1762202011049,0.1514182,106950.0,106940.0,0.49286127]
[1762202011943,0.28261504,106950.0,106940.0,0.35992577]
[1762202012151,0.28261504,106950.0,106940.0,0.03452577]
[1762202012352,0.28261504,106950.0,106940.0,0.001]
[1762202012550,0.28261504,106950.0,106940.0,0.0212]
[1762202012749,0.28261504,106950.0,106940.0,0.0414]
[1762202013157,0.2920988,106950.0,106940.0,0.134937]
[1762202013355,0.16090196,106950.0,106940.0,0.134937]
[1762202015055,0.16090196,106950.0,106940.0,0.16846277]
[1762202017463,0.16090196,106950.0,106940.0,0.07492577]
[1762202017664,0.16090196,106950.0,106940.0,0.134937]
[1762202018062,0.16090196,106950.0,106940.0,0.0414]
[1762202018264,0.16090196,106950.0,106940.0,0.134937]
[1762202020059,0.16090196,106950.0,106940.0,0.07492577]
[1762202020255,0.16090196,106950.0,106940.0,0.14826277]
[1762202020559,0.16090196,106950.0,106940.0,0.16846277]
[1762202021465,0.16090196,106950.0,106940.0,0.16846267]
[1762202022757,0.16090196,106950.0,106940.0,0.07492577]
[1762202022959,0.16090196,106950.0,106940.0,0.16846267]
[1762202023358,0.16090196,106950.0,106940.0,0.07492577]
[1762202023662,0.16090196,106950.0,106940.0,0.16846267]
[1762202023962,0.2920988,106950.0,106940.0,0.03452577]
[1762202024159,0.2920988,106950.0,106940.0,0.05472577]
[1762202024360,0.6172588,106950.0,106940.0,0.03452577]
[1762202024556,0.6172588,106950.0,106940.0,0.001]
[1762202025962,0.1498169,106940.0,106930.0,0.10406843]
[1762202026168,0.28101374,106940.0,106930.0,0.03352577]
[1762202028164,0.28101374,106940.0,106930.0,0.12707147]
[1762202028554,0.60617374,106940.0,106930.0,0.12707147]
[1762202029066,0.60617374,106940.0,106930.0,0.03352577]
[1762202029770,0.60617374,106940.0,106930.0,0.12707147]
[1762202030864,0.4749769,106940.0,106930.0,0.12707147]
[1762202031065,0.60617374,106940.0,106930.0,0.12707147]
[1762202031874,0.60617374,106940.0,106930.0,0.03352577]
[1762202032373,0.1498257,106930.0,106920.0,0.03352577]
[1762202032676,0.28102254,106930.0,106920.0,0.12708027]
[1762202033167,0.28102254,106930.0,106920.0,0.03352577]
[1762202033368,0.28102254,106930.0,106920.0,0.12708027]
[1762202033568,0.28102254,106930.0,106920.0,0.1137545]
[1762202033773,0.28102254,106930.0,106920.0,0.1349545]
[1762202034669,0.1498257,106930.0,106920.0,0.16848027]
[1762202034868,0.28102254,106930.0,106920.0,0.03452577]
[1762202035069,0.1498345,106920.0,106910.0,0.00010479]
[1762202035274,0.60619134,106920.0,106910.0,0.00010479]
[1762202035479,0.28103134,106920.0,106910.0,0.04523479]
[1762202035669,0.05628,106920.0,106910.0,0.14734799]
[1762202035973,0.04327,106930.0,106920.0,0.1446845]
[1762202036661,0.01301,106940.0,106920.0,0.19502716]
[1762202036866,0.01301,106940.0,106930.0,0.1520657]
[1762202036867,0.04327,106940.0,106930.0,0.1520657]
[1762202037062,0.02172,106940.0,106930.0,0.20240836]
[1762202037275,0.04327,106950.0,106940.0,0.152057]
[1762202037569,0.02172,106950.0,106940.0,0.20239966]
[1762202039061,0.02572,106950.0,106940.0,0.20239966]
[1762202039979,0.1192482,106950.0,106940.0,0.20239966]
[1762202040269,0.1538082,106950.0,106940.0,0.20239966]
[1762202041169,0.004,106950.0,106940.0,0.20239966]
[1762202041373,0.004,106950.0,106940.0,0.58417709]
[1762202041567,0.136772,106980.0,106970.0,0.1471907]
[1762202041873,0.04327,106980.0,106970.0,0.1471907]
[1762202042073,0.136772,106980.0,106970.0,0.1471907]
[1762202042275,0.04327,106980.0,106970.0,0.1471907]
[1762202042578,0.144772,106980.0,106970.0,0.1471907]
[1762202042772,0.008,106980.0,106970.0,0.27838754]
[1762202042976,0.008,106980.0,106970.0,0.32875677]
[1762202043166,0.1527609,107010.0,107000.0,0.1520054]
[1762202043368,0.05928,107010.0,107000.0,0.1520054]
[1762202043577,0.04627,107010.0,107000.0,0.4771654]
[1762202043769,0.003,107010.0,107000.0,0.4771654]
[1762202044379,0.1397472,107010.0,107000.0,0.38368]
[1762202045267,0.1397472,107010.0,107000.0,0.4771659]
[1762202045582,0.1397472,107010.0,107000.0,0.38368]
[1762202046181,0.1397472,107010.0,107000.0,0.4771659]
[1762202046973,0.003,107010.0,107000.0,0.4771659]
[1762202047177,0.003,107010.0,107000.0,0.60836274]
[1762202048177,0.003,107010.0,107000.0,0.61136274]
[1762202048685,0.003,107010.0,107000.0,0.61236274]
[1762202049773,0.003,107010.0,107000.0,0.84600274]
[1762202050081,0.04327,107040.0,107030.0,0.1385896]
[1762202050384,0.04627,107050.0,107040.0,0.1415809]
[1762202050590,0.04627,107050.0,107040.0,0.4666209]
[1762202050778,0.02472,107050.0,107040.0,0.4666209]
[1762202050974,0.1181622,107050.0,107040.0,0.4666209]
[1762202051187,0.1397122,107050.0,107040.0,0.37017]
[1762202051980,0.1397122,107050.0,107040.0,0.002]
[1762202051981,0.27090904,107050.0,107040.0,0.002]
[1762202052783,0.136744,107020.0,107010.0,0.1550842]
[1762202052981,0.136744,107020.0,107010.0,0.1550871]
[1762202053183,0.149754,107020.0,107010.0,0.06161]
[1762202053486,0.28095084,107020.0,107010.0,0.06161]
[1762202053682,0.149754,107020.0,107010.0,0.06161]
[1762202054180,0.28095084,107020.0,107010.0,0.06461]
[1762202054375,0.28095084,107020.0,107010.0,0.003]
[1762202054580,0.83955084,107020.0,107010.0,0.003]
[1762202054781,0.1352171,107010.0,107000.0,0.04539603]
[1762202054981,0.04374,107010.0,107000.0,0.13888183]
[1762202055177,0.04374,107010.0,107000.0,0.04539603]
[1762202055588,0.04374,107010.0,107000.0,0.13888183]
[1762202055990,0.04374,107010.0,107000.0,0.14088183]
[1762202056190,0.04374,107010.0,107000.0,0.04739603]
[1762202056586,0.17493684,107010.0,107000.0,0.00211603]
[1762202057790,0.17493684,107010.0,107000.0,0.00011603]
[1762202058091,0.74284027,107010.0,107000.0,0.00111603]
[1762202060288,0.74284027,107010.0,107000.0,0.00011603]
[1762202060888,0.50920027,107010.0,107000.0,0.02331603]
[1762202061089,0.04374,107010.0,107000.0,0.13977193]
[1762202061295,0.1372172,107010.0,107000.0,0.15282193]
[1762202061588,0.1372172,107010.0,107000.0,0.13977193]
[1762202061787,0.50205404,107010.0,107000.0,0.00011603]
[1762202061993,0.26841404,107010.0,107000.0,0.00011603]
[1762202062893,0.50205404,107010.0,107000.0,0.00011603]
[1762202063087,0.26841404,107010.0,107000.0,0.00011603]
[1762202063489,0.59377404,107010.0,107000.0,0.00011603]
[1762202064392,0.60305708,107010.0,107000.0,0.00011603]
[1762202065183,0.83669708,107010.0,107000.0,0.00011603]
[1762202065587,0.83669708,107010.0,107000.0,0.02331603]
[1762202065588,0.47186024,107010.0,107000.0,0.02331603]
[1762202065795,0.60305708,107010.0,107000.0,0.00011603]
[1762202066493,0.83669708,107010.0,107000.0,0.00011603]
[1762202066686,0.83661708,107010.0,107000.0,0.00011603]
[1762202067090,0.60297708,107010.0,107000.0,0.00011603]
[1762202067289,0.83661708,107010.0,107000.0,0.00011603]
[1762202067490,0.1507836,106980.0,106970.0,0.76370138]
[1762202067685,0.1507836,106980.0,106970.0,0.43862138]
[1762202068090,0.1377436,106980.0,106970.0,0.43862138]
[1762202068488,0.04436162,106980.0,106970.0,0.43862138]
[1762202068791,0.15156522,106980.0,106970.0,0.43862138]
[1762202069187,0.04436162,106980.0,106970.0,0.43862138]
[1762202069588,0.04436162,106980.0,106970.0,0.44062138]
[1762202070392,0.15156522,106980.0,106970.0,0.44062448]
[1762202072300,0.05806162,106980.0,106970.0,0.44062448]
[1762202072594,0.15156522,106980.0,106970.0,0.44062448]
[1762202073101,0.05806162,106980.0,106970.0,0.44062448]
[1762202073403,0.15156522,106980.0,106970.0,0.44062448]
[1762202074590,0.15156522,106980.0,106970.0,0.34711208]
[1762202074798,0.15156522,106980.0,106970.0,0.44062468]
[1762202074988,0.00012162,106980.0,106970.0,0.45389468]
[1762202075500,0.13869542,106980.0,106970.0,0.45389468]
[1762202076195,0.04519162,106980.0,106970.0,0.45389468]
[1762202076701,0.02230162,106980.0,106970.0,0.45389468]
[1762202076899,0.13869542,106980.0,106970.0,0.45389468]
[1762202077102,0.15239542,106980.0,106970.0,0.45389468]
[1762202077701,0.05889162,106980.0,106970.0,0.45389468]
[1762202077895,0.15239542,106980.0,106970.0,0.45389468]
[1762202078700,0.15239542,106980.0,106970.0,0.34711208]
[1762202078903,0.15239542,106980.0,106970.0,0.45389468]
[1762202079203,0.15239542,106980.0,106970.0,0.44062468]
[1762202079700,0.15239542,106980.0,106970.0,0.04817]
[1762202080102,0.15239542,106980.0,106970.0,0.1396823]
[1762202080402,0.15239542,106980.0,106970.0,0.04617]
[1762202080599,0.1522823,106970.0,106960.0,0.1371545]
[1762202080805,0.04507,106970.0,106960.0,0.1505445]
[1762202081005,0.1385823,106970.0,106960.0,0.1505445]
[1762202081704,0.16167673,106970.0,106960.0,0.04364]
[1762202081999,0.1522909,106960.0,106950.0,0.51268721]
[1762202082600,0.1512909,106960.0,106950.0,0.51268721]
[1762202082800,0.1512909,106960.0,106950.0,0.52630721]
[1762202083202,0.1512909,106960.0,106950.0,0.52730721]
[1762202083911,0.1512909,106960.0,106950.0,0.1381697]
[1762202084209,0.1512909,106960.0,106950.0,0.04464]
[1762202084408,0.34370099,106960.0,106950.0,0.001]
[1762202084706,0.69052273,106960.0,106950.0,0.001]
[1762202085407,0.1518597,106950.0,106940.0,0.0030857]
[1762202085615,0.34426979,106950.0,106940.0,0.0030857]
[1762202087310,0.1518684,106940.0,106930.0,0.00010793]
[1762202087499,0.66935849,106940.0,106930.0,0.02332793]
[1762202088014,0.66935849,106940.0,106930.0,0.04649793]
[1762202088512,0.66935849,106940.0,106930.0,0.00010793]
[1762202088712,0.66943995,106940.0,106930.0,0.00010793]
[1762202089111,0.66943995,106940.0,106930.0,0.02332793]
[1762202089309,0.47702986,106940.0,106930.0,0.14004513]
[1762202089500,0.47702986,106940.0,106930.0,0.14104513]
[1762202091616,0.47706986,106940.0,106930.0,0.14104513]
[1762202092018,0.15194986,106940.0,106930.0,0.14104513]
[1762202092316,0.47706986,106940.0,106930.0,0.14104513]
[1762202093406,0.15194986,106940.0,106930.0,0.14104513]
[1762202093607,0.47706986,106940.0,106930.0,0.14104513]
[1762202095016,0.47706986,106940.0,106930.0,0.04749793]
[1762202095709,0.66947995,106940.0,106930.0,0.00110793]
[1762202095911,0.1518946,106910.0,106900.0,0.14305025]
[1762202096109,0.4770146,106910.0,106900.0,0.14305025]
[1762202096923,0.47710315,106910.0,106900.0,0.14305025]
[1762202097114,0.47710315,106910.0,106900.0,0.14505025]
[1762202097419,0.47710315,106910.0,106900.0,0.00508685]
[1762202097616,0.47710315,106910.0,106900.0,0.14505025]
[1762202097818,0.48656384,106910.0,106900.0,0.14505025]
[1762202098415,0.67897393,106910.0,106900.0,0.00508685]
[1762202098713,0.67897393,106910.0,106900.0,0.12188025]
[1762202098913,0.48656384,106910.0,106900.0,0.14505025]
[1762202099514,0.39299924,106910.0,106900.0,0.14505025]
[1762202099822,0.39303924,106910.0,106900.0,0.14505025]
[1762202100021,0.48660344,106910.0,106900.0,0.14505025]
[1762202100912,0.39303924,106910.0,106900.0,0.14505025]
[1762202101123,0.48660344,106910.0,106900.0,0.14505025]
[1762202101722,0.48664344,106910.0,106900.0,0.14505025]
[1762202103519,0.39307924,106910.0,106900.0,0.14505025]
[1762202103720,0.48664344,106910.0,106900.0,0.14505025]
[1762202103923,0.48664344,106910.0,106900.0,0.00508685]
[1762202104117,0.67905353,106910.0,106900.0,0.00508685]
[1762202105417,0.1519205,106880.0,106870.0,0.1399834]
[1762202105620,0.15200772,106880.0,106870.0,0.1399834]
[1762202106009,0.02305722,106880.0,106870.0,0.1529134]
[1762202106214,8.722e-05,106880.0,106870.0,0.1529134]
[1762202106425,8.722e-05,106880.0,106870.0,0.90444349]
[1762202106623,0.05833,106910.0,106900.0,0.147543]
[1762202106916,0.04434,106910.0,106900.0,0.147543]
[1762202107119,0.02297,106920.0,106910.0,0.1528842]
[1762202107317,0.04434,106920.0,106910.0,0.1528842]
[1762202107819,0.04444096,106920.0,106910.0,0.1528842]
[1762202108119,0.00010096,106920.0,106910.0,0.1528842]
[1762202108513,0.02307096,106920.0,106910.0,0.1528842]
[1762202108913,0.00010096,106920.0,106910.0,0.161993]
[1762202109114,0.00210096,106920.0,106910.0,0.67964309]
[1762202109310,0.04644096,106920.0,106910.0,0.4781242]
[1762202109516,0.02307096,106920.0,106910.0,0.4781242]
[1762202109719,0.00010096,106920.0,106910.0,0.4781242]
[1762202109918,0.04444096,106920.0,106910.0,0.4781242]
[1762202110113,0.15198576,106920.0,106910.0,0.4781235]
[1762202110721,0.04444096,106920.0,106910.0,0.4781235]
[1762202111023,0.00010096,106920.0,106910.0,0.4781235]
[1762202111723,0.09365576,106920.0,106910.0,0.4781235]
[1762202111930,0.15198576,106920.0,106910.0,0.4781235]
[1762202112123,0.04444096,106920.0,106910.0,0.4781235]
[1762202112622,0.13799576,106920.0,106910.0,0.4781235]
[1762202112822,0.15198576,106920.0,106910.0,0.1167835]
[1762202113022,0.15198576,106920.0,106910.0,0.1399535]
[1762202113429,0.15198576,106920.0,106910.0,0.02322]
[1762202113626,0.0935723,106900.0,106890.0,0.47663991]
[1762202113931,0.04434,106900.0,106890.0,0.4651655]
[1762202114122,0.04434,106900.0,106890.0,0.51544991]
[1762202114629,0.02297,106900.0,106890.0,0.51544991]
[1762202115929,0.1165423,106900.0,106890.0,0.51544991]
[1762202116126,0.0458,106900.0,106890.0,0.51544991]
[1762202116732,0.1393723,106900.0,106890.0,0.51544991]
[1762202116933,0.0458,106900.0,106890.0,0.51544991]
[1762202117919,0.0458,106900.0,106890.0,0.52858991]
[1762202118221,0.01409096,106920.0,106900.0,0.1492723]
[1762202118421,0.05877096,106920.0,106910.0,0.1361235]
[1762202118624,0.15232576,106920.0,106910.0,0.1361236]
[1762202119032,0.05877096,106920.0,106910.0,0.1361236]
[1762202119231,0.05977096,106920.0,106910.0,0.1492636]
[1762202119827,0.15332566,106920.0,106910.0,0.04256]
[1762202120827,0.17617052,106920.0,106910.0,0.1361234]
[1762202121025,0.15432566,106920.0,106910.0,0.02112]
[1762202121227,0.17616953,106920.0,106910.0,0.04256]
[1762202121828,0.0935634,106910.0,106900.0,0.0935701]
[1762202122022,0.0935722,106900.0,106890.0,0.05028441]
[1762202122226,0.1508622,106900.0,106890.0,0.41804441]
[1762202122531,0.1508622,106900.0,106890.0,0.36776]
[1762202122724,0.1508622,106900.0,106890.0,0.461341]
[1762202123124,0.1508622,106900.0,106890.0,0.04256]
[1762202123331,0.1508622,106900.0,106890.0,0.136141]
[1762202124226,0.1382522,106900.0,106890.0,0.149281]
[1762202124431,0.04468,106900.0,106890.0,0.149281]
[1762202125138,0.1382522,106900.0,106890.0,0.149281]
[1762202125428,0.04468,106900.0,106890.0,0.149281]
[1762202126026,0.1508622,106900.0,106890.0,0.149281]
[1762202126735,0.1508622,106900.0,106890.0,0.136141]
[1762202127328,0.05729,106900.0,106890.0,0.19956541]
[1762202127729,0.1508622,106900.0,106890.0,0.19956541]
[1762202128034,0.1508622,106900.0,106890.0,0.1361409]
[1762202129831,0.1508622,106900.0,106890.0,0.04256]
[1762202130538,0.1508622,106900.0,106890.0,0.136141]
[1762202131636,0.1538622,106900.0,106890.0,0.04256]
[1762202131835,0.15394557,106900.0,106890.0,0.04256]
[1762202132038,0.15094557,106900.0,106890.0,0.04256]
[1762202132341,0.29482325,106900.0,106890.0,0.04256]
[1762202132936,0.29482325,106900.0,106890.0,0.1361409]
[1762202133441,0.06983096,106900.0,106890.0,0.1361409]
[1762202133640,0.16340316,106900.0,106890.0,0.1361409]
[1762202134136,0.05722096,106900.0,106890.0,0.1496809]
[1762202134536,0.16433316,106900.0,106890.0,0.1361409]
[1762202135245,0.29575325,106900.0,106890.0,0.04256]
[1762202136845,0.29575325,106900.0,106890.0,0.1361409]
[1762202137045,0.16433316,106900.0,106890.0,0.1361409]
[1762202138346,0.16433316,106900.0,106890.0,0.136141]
[1762202139444,0.00308337,106900.0,106890.0,0.3313855]
[1762202139745,0.00308337,106900.0,106890.0,0.28110109]
[1762202139944,0.00308337,106900.0,106890.0,0.34826434]
[1762202141149,0.02418337,106900.0,106890.0,0.21684425]
[1762202141548,0.05885337,106900.0,106890.0,0.21684425]
[1762202141748,0.15242557,106900.0,106890.0,0.21684425]
[1762202141949,0.04531337,106900.0,106890.0,0.21684425]
[1762202142250,0.15242557,106900.0,106890.0,0.20330415]
[1762202142548,0.15242557,106900.0,106890.0,0.18659055]
[1762202142738,0.15242557,106900.0,106890.0,0.09300965]
[1762202143148,0.15242557,106900.0,106890.0,0.18659055]
[1762202149054,0.28384566,106900.0,106890.0,0.09300965]
[1762202149351,0.28384566,106900.0,106890.0,0.05044965]
[1762202149550,0.15242557,106900.0,106890.0,0.05044965]
[1762202149749,0.28384566,106900.0,106890.0,0.09400965]
[1762202150054,0.1518609,106890.0,106880.0,0.09400965]
[1762202150257,0.28328099,106890.0,106880.0,0.09400965]
[1762202151557,0.28328099,106890.0,106880.0,0.18759925]
[1762202152665,0.28328099,106890.0,106880.0,0.09400965]
[1762202152855,0.28528099,106890.0,106880.0,0.09400965]
[1762202153057,0.28528099,106890.0,106880.0,0.04356]
[1762202153361,0.28528099,106890.0,106880.0,0.1371496]
[1762202154160,0.1538609,106890.0,106880.0,0.1371496]
[1762202154463,0.1538609,106890.0,106880.0,0.04356]
[1762202155464,0.28528099,106890.0,106880.0,0.1371496]
[1762202155759,0.28528099,106890.0,106880.0,0.04356]
[1762202155959,0.1518696,106880.0,106870.0,0.51280165]
[1762202156264,0.28328969,106880.0,106870.0,0.51280165]
[1762202156453,0.1518696,106880.0,106870.0,0.51280165]
[1762202157467,0.1528696,106880.0,106870.0,0.41920965]
[1762202157667,0.28428969,106880.0,106870.0,0.05044965]
[1762202157862,0.1518784,106870.0,106860.0,0.19070486]
[1762202158066,0.16132523,106870.0,106860.0,0.14025521]
[1762202158367,0.61794532,106870.0,106860.0,0.0535321]
[1762202158568,0.61794532,106870.0,106860.0,0.00308801]
[1762202158867,0.61794532,106870.0,106860.0,0.02452801]
[1762202159060,0.61794532,106870.0,106860.0,0.14025521]
[1762202159858,0.61794532,106870.0,106860.0,0.04664801]
[1762202160162,0.48652523,106870.0,106860.0,0.14025511]
[1762202160358,0.39292683,106870.0,106860.0,0.14025511]
[1762202160557,0.39292683,106870.0,106860.0,0.04664801]
[1762202160558,0.61794522,106870.0,106860.0,0.04664801]
[1762202160965,0.61794522,106870.0,106860.0,0.00308801]
[1762202161165,0.61794522,106870.0,106860.0,0.04664801]
[1762202161661,0.48652513,106870.0,106860.0,0.14025511]
[1762202162058,0.04448742,106870.0,106860.0,0.15339511]
[1762202162260,7.742e-05,106870.0,106860.0,0.33525929]
[1762202162454,7.742e-05,106870.0,106860.0,0.4377992]
[1762202162765,0.02168742,106870.0,106860.0,0.22055836]
[1762202162966,0.04448742,106870.0,106860.0,0.22055836]
[1762202163561,0.15195572,106870.0,106860.0,0.09703109]
[1762202163961,0.15195572,106870.0,106860.0,0.19063819]
[1762202164761,0.04448742,106870.0,106860.0,0.20377819]
[1762202164967,0.13808572,106870.0,106860.0,0.20377819]
[1762202166176,0.15195572,106870.0,106860.0,0.09703109]
[1762202166469,0.28337581,106870.0,106860.0,0.04664801]
[1762202167777,0.15195572,106870.0,106860.0,0.14025501]
[1762202167983,0.05835742,106870.0,106860.0,0.15339501]
[1762202168472,0.05835742,106870.0,106860.0,0.04664801]
[1762202168473,0.15195572,106870.0,106860.0,0.04664801]
[1762202168671,0.15195572,106870.0,106860.0,0.14025491]
[1762202169469,0.15195572,106870.0,106860.0,0.04664801]
[1762202169873,0.15195572,106870.0,106860.0,0.14025391]
[1762202170075,0.05835742,106870.0,106860.0,0.14025391]
[1762202170376,0.15195502,106870.0,106860.0,0.14025391]
[1762202170575,0.15195502,106870.0,106860.0,0.04664801]
[1762202170968,0.28337511,106870.0,106860.0,0.04664801]
[1762202171868,0.28337511,106870.0,106860.0,0.14025441]
[1762202172475,0.28337511,106870.0,106860.0,0.04664801]
[1762202173080,0.28337511,106870.0,106860.0,0.14025451]
[1762202173273,0.15195502,106870.0,106860.0,0.14025451]
[1762202174681,0.15195502,106870.0,106860.0,0.04664801]
[1762202174871,0.15195502,106870.0,106860.0,0.14025441]
[1762202175072,0.28337511,106870.0,106860.0,0.00308801]
[1762202175380,0.60861511,106870.0,106860.0,0.00308801]
[1762202175774,0.05771,106850.0,106840.0,0.05038308]
[1762202176078,0.05771,106840.0,106830.0,0.18787578]
[1762202176281,0.05771,106840.0,106830.0,0.09424308]
[1762202176470,0.05771,106840.0,106830.0,0.18787578]
[1762202176871,0.05780739,106840.0,106830.0,0.18787578]
[1762202177271,0.18922748,106840.0,106830.0,0.09424308]
[1762202177467,0.18922748,106840.0,106830.0,0.1374927]
[1762202178477,0.05780739,106840.0,106830.0,0.1374927]
[1762202178777,0.0672941,106840.0,106830.0,0.1374927]
[1762202179383,0.05780739,106840.0,106830.0,0.1501227]
[1762202179579,0.04437739,106840.0,106830.0,0.1501227]
[1762202179780,9.739e-05,106840.0,106830.0,0.33192587]
[1762202179980,9.739e-05,106840.0,106830.0,0.34870604]
[1762202180280,0.04428,106860.0,106850.0,0.1403951]
[1762202180487,0.05771,106860.0,106850.0,0.19077646]
[1762202181484,0.05880106,106860.0,106850.0,0.19077646]
[1762202182779,0.04537106,106860.0,106850.0,0.19077646]
[1762202183181,0.00109106,106860.0,106850.0,0.19077646]
[1762202183383,0.00109106,106860.0,106850.0,0.32219655]
[1762202183585,0.04428,106880.0,106870.0,0.1500876]
[1762202183881,0.04428,106880.0,106870.0,0.20047765]
[1762202184189,0.1512845,106900.0,106890.0,0.1500701]
[1762202184484,0.15136634,106900.0,106890.0,0.1500701]
[1762202184785,0.15136634,106900.0,106890.0,0.1374401]
[1762202184984,0.16050328,106900.0,106890.0,0.1374401]
[1762202185787,0.15136634,106900.0,106890.0,0.1374401]
[1762202186078,0.15136634,106900.0,106890.0,0.04386]
[1762202186079,0.28278643,106900.0,106890.0,0.04386]
[1762202186287,0.1513076,106870.0,106860.0,0.18785084]
[1762202186586,0.15138944,106870.0,106860.0,0.51309084]
[1762202187084,0.29198324,106870.0,106860.0,0.09424684]
[1762202187290,0.1378864,106860.0,106850.0,0.09424684]
[1762202187583,0.1378864,106860.0,106850.0,0.1374751]
[1762202187784,0.04428,106860.0,106850.0,0.1374751]
[1762202187979,0.1378864,106860.0,106850.0,0.1374751]
[1762202188175,0.1378864,106860.0,106850.0,0.04386]
[1762202188378,0.1378864,106860.0,106850.0,0.1374752]
[1762202189979,0.04428,106860.0,106850.0,0.1374752]
[1762202190174,0.1378865,106860.0,106850.0,0.1374752]
[1762202191581,0.04428,106860.0,106850.0,0.1374752]
[1762202191881,0.05693,106860.0,106850.0,0.1374752]
[1762202192089,0.1505364,106860.0,106850.0,0.1374752]
[1762202192587,0.15138064,106870.0,106860.0,0.1387264]
[1762202192881,8.184e-05,106870.0,106860.0,0.1421664]
[1762202193086,0.15059944,106870.0,106860.0,0.1421664]
[1762202193584,0.05800184,106870.0,106860.0,0.1421664]
[1762202194279,0.1505264,106860.0,106850.0,0.18911954]
[1762202194480,0.1505264,106860.0,106850.0,0.1387327]
[1762202194884,0.04427,106860.0,106850.0,0.1514027]
[1762202195083,0.05800184,106870.0,106860.0,0.1513564]
[1762202195386,0.02340184,106870.0,106860.0,0.1513564]
[1762202195985,0.02340184,106870.0,106860.0,0.4765564]
[1762202196182,0.04535184,106870.0,106860.0,0.4765564]
[1762202196378,0.13794954,106870.0,106860.0,0.4765564]
[1762202196583,0.04435184,106870.0,106860.0,0.4765564]
[1762202196992,0.04535184,106870.0,106860.0,0.4765564]
[1762202197584,0.13894954,106870.0,106860.0,0.4765564]
[1762202197781,0.04535184,106870.0,106860.0,0.4765564]
[1762202199690,0.04535184,106870.0,106860.0,0.71981438]
[1762202199691,0.00108184,106870.0,106860.0,0.71981438]
[1762202199893,0.00108184,106870.0,106860.0,0.97055079]
[1762202200285,0.00108184,106870.0,106860.0,0.77767965]
[1762202200486,0.00108184,106870.0,106860.0,0.97055079]
[1762202200882,0.00108184,106870.0,106860.0,0.77767965]
[1762202201083,8.184e-05,106870.0,106860.0,0.54471965]
[1762202201293,0.09367974,106870.0,106860.0,0.54471965]
[1762202201484,0.04435184,106870.0,106860.0,0.20272361]
[1762202201680,0.04435184,106870.0,106860.0,0.52792361]
[1762202202290,0.02240184,106870.0,106860.0,0.52792361]
[1762202203196,0.02240184,106870.0,106860.0,0.52692361]
[1762202203197,0.00108184,106870.0,106860.0,0.52692361]
[1762202204089,0.00108184,106870.0,106860.0,0.4765564]
[1762202204290,8.184e-05,106870.0,106860.0,0.4765564]
[1762202205986,8.184e-05,106870.0,106860.0,0.97055079]
[1762202206899,8.184e-05,106870.0,106860.0,0.97155079]
[1762202207988,0.0561,106900.0,106890.0,0.1515705]
[1762202208286,0.15913243,106900.0,106890.0,0.1515705]
[1762202208594,0.15913243,106900.0,106890.0,0.1389405]
[1762202209305,0.1499893,106880.0,106870.0,0.18930855]
[1762202209597,0.1499893,106880.0,106870.0,0.51442855]
[1762202210095,0.0564,106880.0,106870.0,0.51442855]
[1762202210684,0.0564,106880.0,106870.0,0.52821855]
[1762202210889,0.0584,106880.0,106870.0,0.52821855]
[1762202211196,0.04545,106880.0,106870.0,0.52821855]
[1762202211686,0.002,106880.0,106870.0,0.52821855]